bitfinex-derivatives/quotes_ETHF0:USTF0_20250612
["timestamp","ask_amount","ask_price","bid_price","bid_amount"]
[1749726257742,4.5064787,2751.2,2751.1,6.278]
[1749726259240,3.7796587,2751.2,2751.1,6.278]
[1749726259439,3.21325891,2751.7,2751.1,6.278]
[1749726259746,0.73214891,2751.7,2751.6,3.2078]
[1749726259941,0.73214891,2751.7,2751.6,9.4858]
[1749726260143,4.51180761,2751.7,2751.6,9.4858]
[1749726260541,4.51180761,2751.7,2751.6,3.2078]
[1749726261038,4.51180761,2751.7,2751.6,9.4848]
[1749726264448,9.51180761,2751.7,2751.6,3.2078]
[1749726264746,0.7888372,2751.2,2751.1,6.8659]
[1749726264945,4.5684959,2751.2,2751.1,6.8659]
[1749726265349,4.5684959,2751.2,2751.1,6.277]
[1749726265748,0.7269,2750.9,2750.8,1.33672]
[1749726266048,0.7269,2750.9,2750.8,30.72072]
[1749726266847,0.0620172,2751.2,2750.9,0.72687]
[1749726266848,0.72689,2751.0,2750.9,0.72687]
[1749726267050,0.7269,2750.9,2750.8,31.92472]
[1749726267447,0.0620172,2751.2,2750.8,31.1978]
[1749726267652,0.0620172,2751.2,2751.1,0.72685]
[1749726267950,0.7888372,2751.2,2751.1,0.72685]
[1749726268547,0.0620172,2751.2,2751.1,0.72685]
[1749726268746,0.7888372,2751.2,2751.1,0.72685]
[1749726269054,0.72685,2751.1,2751.0,1.93087]
[1749726269353,4.5065087,2751.1,2751.0,1.93087]
[1749726269546,4.5065087,2751.1,2751.0,1.204]
[1749726269746,0.72687,2751.0,2750.9,0.72688]
[1749726269947,0.72687,2751.0,2750.9,1.91378]
[1749726270147,0.7269,2750.9,2750.8,33.9285]
[1749726270348,3.7796587,2751.0,2750.9,0.7269]
[1749726270548,4.5065287,2751.0,2750.9,0.7269]
[1749726270752,0.72687,2751.0,2750.9,0.7269]
[1749726271053,0.72687,2751.0,2750.8,34.3885]
[1749726271054,0.72687,2751.1,2751.0,0.72686]
[1749726271444,4.5065487,2751.0,2750.9,0.72688]
[1749726271851,0.72689,2751.0,2750.9,0.72688]
[1749726272153,0.72689,2751.0,2750.9,0.72687]
[1749726272451,0.72687,2751.1,2751.0,0.72686]
[1749726272651,0.0620172,2751.2,2751.1,0.72685]
[1749726272652,0.7888572,2751.2,2751.1,0.72685]
[1749726273045,3.8416759,2751.2,2751.1,0.72685]
[1749726273647,3.8416759,2751.2,2751.0,0.72686]
[1749726273846,3.7796587,2751.1,2751.0,0.72686]
[1749726274056,4.5065287,2751.1,2751.0,0.72686]
[1749726276854,3.7796587,2751.1,2751.0,0.72686]
[1749726277751,3.7796587,2751.1,2750.8,36.20581]
[1749726277752,0.7888472,2751.2,2751.1,0.72685]
[1749726278144,4.5685059,2751.2,2751.1,0.72685]
[1749726280050,0.72689,2751.1,2751.0,0.72686]
[1749726280251,4.5065487,2751.1,2751.0,0.72686]
[1749726281558,0.7888472,2751.2,2751.1,0.72685]
[1749726281751,3.8416759,2751.2,2751.1,0.72685]
[1749726282657,4.5684959,2751.2,2751.1,0.72685]
[1749726282957,3.8416759,2751.2,2751.1,0.72685]
[1749726283360,4.5684959,2751.2,2751.1,0.72685]
[1749726287156,0.0620172,2751.2,2751.1,0.72685]
[1749726287759,0.0620172,2751.2,2751.1,6.99385]
[1749726288060,0.7888372,2751.2,2751.1,6.99385]
[1749726288253,0.0620172,2751.2,2751.1,30.08985]
[1749726288659,3.8416759,2751.2,2751.1,30.08985]
[1749726289366,4.5684959,2751.2,2751.1,6.267]
[1749726289556,4.5684959,2751.2,2751.1,29.361]
[1749726290656,4.5684959,2751.2,2751.1,30.08785]
[1749726291562,4.5684959,2751.2,2751.1,29.361]
[1749726293063,4.5684959,2751.2,2751.1,30.08785]
[1749726295163,3.8416759,2751.2,2751.1,30.08785]
[1749726295457,0.0620172,2751.2,2751.1,30.08785]
[1749726295664,0.7888372,2751.2,2751.1,30.08785]
[1749726297858,4.5684959,2751.2,2751.1,30.08785]
[1749726298967,4.5684959,2751.2,2751.1,6.267]
[1749726299261,5.8376959,2751.2,2751.1,29.354]
[1749726299868,5.8376959,2751.2,2751.1,30.08085]
[1749726300363,5.8376959,2751.2,2751.1,29.354]
[1749726300554,5.8376959,2751.2,2751.1,6.267]
[1749726300760,0.72698,2750.6,2750.5,6.267]
[1749726300955,3.7796587,2750.6,2750.5,30.07901]
[1749726301157,0.0620172,2751.2,2751.1,0.72685]
[1749726301365,0.0620172,2751.2,2751.1,23.81185]
[1749726301664,0.7269,2750.9,2750.8,5.08029369]
[1749726301865,4.5065587,2750.9,2750.8,23.085]
[1749726302068,0.72695,2750.7,2750.6,6.267]
[1749726302268,4.5066087,2750.7,2750.6,6.267]
[1749726302567,4.5066087,2750.7,2750.3,10.20729891]
[1749726302568,0.72703,2750.4,2750.3,10.20729891]
[1749726302769,4.5066887,2750.4,2750.3,6.27245891]
[1749726303062,4.5066887,2750.4,2749.8,0.72718]
[1749726303063,0.72717,2749.9,2749.8,0.72718]
[1749726303262,3.7796587,2749.6,2749.5,7.14319019]
[1749726303455,3.7796587,2749.6,2749.5,23.15574049]
[1749726303664,3.7796587,2749.6,2749.5,23.88301049]
[1749726303864,0.2909,2749.6,2749.5,23.88301049]
[1749726304064,0.2909,2749.6,2749.5,0.80001049]
[1749726304464,0.2909,2749.6,2749.5,23.88301049]
[1749726308169,0.7273,2749.4,2749.3,9.48025891]
[1749726308370,3.7796587,2749.4,2749.3,33.29157891]
[1749726308569,3.7796587,2749.4,2749.3,10.20757891]
[1749726308772,3.7796587,2749.4,2749.3,33.29057891]
[1749726309672,4.5069587,2749.4,2749.3,33.29057891]
[1749726309975,4.5069587,2749.4,2749.3,32.56525891]
[1749726310177,3.7796587,2749.4,2749.3,33.29257891]
[1749726310366,4.5069587,2749.4,2749.3,33.29257891]
[1749726310566,4.5069587,2749.4,2749.3,6.27245891]
[1749726310766,4.5069587,2749.4,2749.3,23.08945891]
[1749726311069,5.1267587,2749.4,2749.3,23.08945891]
[1749726311271,5.6722587,2749.4,2749.3,0.00545891]
[1749726311470,5.6722587,2749.4,2749.3,23.08945891]
[1749726311670,6.9161587,2749.4,2749.3,23.08945891]
[1749726311873,6.9161587,2749.4,2749.3,23.09145891]
[1749726314769,6.9161587,2749.4,2749.3,0.00545891]
[1749726314971,6.9161587,2749.4,2749.3,23.09245891]
[1749726316171,6.9161587,2749.4,2749.3,0.00545891]
[1749726316372,6.9161587,2749.4,2749.3,23.09145891]
[1749726318072,6.93837923,2749.4,2749.3,23.09145891]
[1749726318271,6.93837923,2749.4,2749.3,0.00545891]
[1749726318475,4.96717923,2749.4,2749.0,23.086]
[1749726318778,4.96717923,2749.4,2749.3,0.72732]
[1749726318779,1.29502053,2749.4,2749.3,0.72732]
[1749726318976,4.34737923,2749.4,2749.3,0.72732]
[1749726319171,4.36170623,2749.4,2749.3,6.98432]
[1749726319376,5.08900623,2749.4,2749.3,6.257]
[1749726319772,5.10333323,2749.4,2749.3,6.257]
[1749726320374,5.16535043,2749.4,2749.3,6.257]
[1749726321373,5.17967743,2749.4,2749.3,6.257]
[1749726321577,8.38747743,2749.4,2749.3,6.257]
[1749726321772,8.40180443,2749.4,2749.3,6.257]
[1749726322276,8.41613143,2749.4,2749.3,6.257]
[1749726322472,8.35411423,2749.4,2749.3,6.257]
[1749726322778,0.72735,2749.2,2749.1,0.00545891]
[1749726322978,4.61519123,2749.2,2749.1,0.00545891]
[1749726325480,4.6295043,2749.2,2749.1,0.00545891]
[1749726326575,4.64381737,2749.2,2749.1,0.00545891]
[1749726326975,3.91646737,2749.2,2749.1,0.00545891]
[1749726327277,4.64381737,2749.2,2749.1,0.00545891]
[1749726327479,0.13680867,2749.2,2749.1,0.73283891]
[1749726327777,0.5455,2749.4,2749.3,0.57619826]
[1749726327977,4.3251587,2749.4,2749.3,0.57619826]
[1749726328178,0.72734,2749.3,2749.2,0.72734]
[1749726328376,5.0524687,2749.4,2749.3,0.72732]
[1749726328874,4.3251587,2749.4,2749.1,1.19545891]
[1749726329374,1.01823,2749.3,2749.2,0.72733]
[1749726329779,0.72735,2749.2,2749.1,1.92282891]
[1749726329973,0.72735,2749.2,2749.1,1.19545891]
[1749726330173,0.72735,2749.2,2749.1,23.08445891]
[1749726332084,3.7796587,2749.2,2749.1,23.08445891]
[1749726332279,0.2909,2749.3,2749.1,27.46365891]
[1749726332481,0.2909,2749.3,2749.2,1.89875]
[1749726332680,1.01822,2749.3,2749.2,1.89875]
[1749726332882,4.7978787,2749.3,2749.2,1.1714]
[1749726333183,4.7978787,2749.3,2749.2,1.89875]
[1749726333573,1.01822,2749.3,2749.2,1.89875]
[1749726333778,0.2909,2749.3,2749.2,1.89875]
[1749726334085,1.56372,2749.3,2749.2,1.1714]
[1749726334278,1.56372,2749.3,2749.2,1.89875]
[1749726334477,1.57955732,2749.3,2749.2,1.89875]
[1749726335483,1.59381241,2749.3,2749.2,1.89875]
[1749726336884,1.60806734,2749.3,2749.2,1.89875]
[1749726337279,1.60806734,2749.3,2749.2,1.1714]
[1749726337579,1.60806734,2749.3,2749.2,1.89875]
[1749726337975,1.56372,2749.3,2749.2,1.1714]
[1749726338181,1.61522408,2749.3,2749.2,1.1714]
[1749726339379,1.61522408,2749.3,2749.2,1.89875]
[1749726339880,1.61522408,2749.3,2749.2,1.1714]
[1749726340085,1.61522408,2749.3,2749.2,1.89875]
[1749726340484,1.61522408,2749.3,2749.2,1.1714]
[1749726340880,1.61522408,2749.3,2749.2,1.89875]
[1749726341081,1.61522408,2749.3,2749.2,1.1714]
[1749726341384,1.61522408,2749.3,2749.2,1.89875]
[1749726341584,1.61522408,2749.3,2749.2,1.1714]
[1749726342087,0.72735,2749.2,2749.1,0.00545891]
[1749726342386,4.5070087,2749.2,2749.1,0.00545891]
[1749726342581,5.1081087,2749.2,2749.1,23.07445891]
[1749726342783,5.1701259,2749.2,2749.1,23.07445891]
[1749726343180,5.22162998,2749.2,2749.1,0.00545891]
[1749726343389,6.43922998,2749.2,2749.1,23.07345891]
[1749726343885,6.39145986,2749.2,2749.1,23.07345891]
[1749726344985,6.405688,2749.2,2749.1,23.07345891]
[1749726345892,6.405688,2749.2,2748.9,6.257]
[1749726345893,0.72756,2748.4,2748.3,6.257]
[1749726346183,0.72756,2748.4,2748.3,29.324]
[1749726346578,0.72759,2748.3,2748.2,1.32941]
[1749726346990,1.11279751,2748.3,2748.2,1.32941]
[1749726347190,1.11279751,2748.3,2748.2,7.58741]
[1749726347989,1.11279751,2748.3,2748.2,29.325]
[1749726347990,1.12001586,2748.3,2748.2,29.325]
[1749726348190,4.89967456,2748.3,2748.2,6.258]
[1749726348682,0.72777,2747.7,2747.6,3.2078]
[1749726348890,4.60883456,2747.7,2747.6,27.00157]
[1749726349090,0.82917586,2747.7,2747.6,27.00157]
[1749726349983,0.10142586,2747.7,2747.6,27.00157]
[1749726351391,0.82917586,2747.7,2747.6,27.00157]
[1749726351682,0.10142586,2747.7,2747.6,27.00157]
[1749726352089,0.82917586,2747.7,2747.6,27.00157]
[1749726352390,0.10142586,2747.7,2747.6,27.00157]
[1749726352694,0.82917586,2747.7,2747.6,27.00157]
[1749726352890,0.10142586,2747.7,2747.6,27.00157]
[1749726353092,0.82917586,2747.7,2747.6,27.00157]
[1749726353690,0.10142586,2747.7,2747.6,27.00157]
[1749726354393,0.82917586,2747.7,2747.6,27.00157]
[1749726354689,0.10142586,2747.7,2747.6,27.00157]
[1749726354993,1.37507586,2747.7,2747.6,27.00157]
[1749726355485,0.64732586,2747.7,2747.6,27.00157]
[1749726355681,1.37507586,2747.7,2747.6,27.00157]
[1749726355890,0.64732586,2747.7,2747.6,27.00157]
[1749726356191,0.64732586,2747.7,2747.6,0.72777]
[1749726356392,0.64732586,2747.7,2747.6,23.79177]
[1749726356689,1.37507586,2747.7,2747.6,23.79177]
[1749726356890,0.64732586,2747.7,2747.6,23.79177]
[1749726357090,1.37507586,2747.7,2747.6,23.79177]
[1749726357290,0.64732586,2747.7,2747.6,23.79177]
[1749726357894,1.37507586,2747.7,2747.6,23.79177]
[1749726358598,0.64732586,2747.7,2747.6,23.79177]
[1749726359294,1.37507586,2747.7,2747.6,23.79177]
[1749726359697,0.64732586,2747.7,2747.6,23.79177]
[1749726361098,0.93842586,2747.7,2747.6,23.79177]
[1749726361294,1.66617586,2747.7,2747.6,0.72777]
[1749726361500,1.66617586,2747.7,2747.6,23.78977]
[1749726361800,5.44583456,2747.7,2747.6,23.062]
[1749726362094,4.71808456,2747.7,2747.6,23.78977]
[1749726362593,3.2078,2748.6,2747.6,31.2698]
[1749726362794,3.7796587,2748.2,2748.1,0.72764]
[1749726363002,4.5072687,2748.2,2748.1,30.03364]
[1749726363299,0.72761,2748.2,2748.1,30.03364]
[1749726363503,0.72761,2748.3,2748.2,0.72759]
[1749726364002,4.5072687,2748.3,2748.2,0.72759]
[1749726364696,0.72761,2748.2,2748.1,29.306]
[1749726364901,4.5072687,2748.2,2748.1,29.306]
[1749726365199,0.7276,2748.3,2748.2,0.7276]
[1749726365400,4.5072687,2748.2,2748.1,30.03362]
[1749726365701,4.5072687,2748.2,2748.1,29.306]
[1749726365909,0.72761,2748.2,2748.1,29.306]
[1749726367200,0.72761,2748.2,2748.1,30.03364]
[1749726367390,0.72761,2748.2,2748.1,29.306]
[1749726368401,0.72761,2748.2,2748.1,30.03364]
[1749726368696,0.72761,2748.2,2748.1,29.306]
[1749726369499,4.5072687,2748.2,2748.1,29.299]
[1749726369705,0.72764,2748.1,2748.0,0.00545891]
[1749726370000,5.0946987,2748.1,2748.0,23.05945891]
[1749726370302,0.72775,2747.7,2747.6,6.245]
[1749726370502,4.5074087,2747.7,2747.6,6.245]
[1749726370703,4.5074087,2747.7,2747.6,29.298]
[1749726370891,4.5074087,2747.7,2747.2,1.2553]
[1749726370892,0.72785,2747.3,2747.2,1.2553]
[1749726371098,0.72785,2747.3,2747.2,7.5003]
[1749726371297,0.72785,2747.3,2747.2,31.28118]
[1749726371497,0.72785,2747.3,2747.2,30.5533]
[1749726371697,0.72785,2747.3,2747.2,31.28118]
[1749726372708,0.72785,2747.3,2747.2,8.22818]
[1749726372907,0.72785,2747.3,2747.2,31.28218]
[1749726373415,0.5874,2747.6,2747.2,30.5543]
[1749726373606,3.7796587,2747.5,2747.4,0.72783]
[1749726373803,3.7796587,2747.5,2747.4,23.77983]
[1749726374002,0.7278,2747.5,2747.4,23.77983]
[1749726375511,0.72779,2747.6,2747.5,0.72778]
[1749726375712,0.72779,2747.6,2747.5,23.78078]
[1749726375910,4.5074487,2747.6,2747.5,23.053]
[1749726377913,0.72785,2747.3,2747.2,6.8577]
[1749726378114,3.7796587,2747.3,2746.9,6.246]
[1749726378314,0.72787,2747.3,2747.2,0.72786]
[1749726378512,4.5075587,2747.2,2747.1,0.72789]
[1749726378715,4.5075587,2747.2,2747.1,23.77689]
[1749726379210,4.5075587,2747.2,2747.1,23.77691]
[1749726379412,4.5075587,2747.2,2747.1,23.049]
[1749726379811,0.72793,2747.0,2746.9,6.97396]
[1749726380117,4.5075887,2747.0,2746.9,29.295]
[1749726380419,0.72793,2747.0,2746.9,29.295]
[1749726380713,4.5075887,2747.0,2746.9,29.295]
[1749726381010,0.72796,2746.9,2746.8,6.23]
[1749726381516,5.1395187,2746.9,2746.8,29.278]
[1749726382513,0.72804,2746.6,2746.5,6.23]
[1749726382813,4.5076987,2746.6,2746.5,29.278]
[1749726383012,4.5076987,2746.6,2746.5,6.23]
[1749726383212,0.72817,2746.1,2746.0,6.23]
[1749726383414,4.5078287,2746.1,2746.0,29.276]
[1749726384311,4.5078287,2746.1,2746.0,6.23]
[1749726384711,4.5078287,2746.1,2746.0,29.277]
[1749726389119,3.7796587,2746.1,2746.0,23.047]
[1749726389618,4.5078287,2746.1,2746.0,23.7752]
[1749726392120,4.5078287,2746.1,2746.0,23.047]
[1749726392724,3.93596,2746.2,2746.1,0.72817]
[1749726393220,7.7156187,2746.2,2746.1,2.02257]
[1749726393622,0.7282,2746.0,2745.9,0.72821]
[1749726393824,0.7282,2746.0,2745.9,23.77521]
[1749726394021,0.7282,2746.0,2745.9,24.3404]
[1749726394321,0.7282,2746.0,2745.9,25.06862]
[1749726395325,3.2078,2746.2,2745.9,25.06862]
[1749726395326,0.72819,2746.1,2746.0,0.72817]
[1749726395526,4.5078487,2746.1,2746.0,23.77317]
[1749726395714,0.72819,2746.1,2746.0,25.00947]
[1749726396126,3.93595,2746.2,2746.1,0.72817]
[1749726396522,7.7156087,2746.2,2746.1,0.72817]
[1749726397325,0.72817,2746.1,2746.0,25.00948]
[1749726397522,4.5078287,2746.1,2746.0,25.00948]
[1749726397824,0.72817,2746.1,2746.0,24.2813]
[1749726398922,0.72817,2746.1,2746.0,25.0095]
[1749726399821,0.72817,2746.1,2746.0,1.2363]
[1749726400023,0.72817,2746.1,2746.0,24.2793]
[1749726400230,0.72822,2745.9,2745.8,6.231]
[1749726400528,4.5078787,2745.9,2745.8,30.00025]
[1749726405024,4.5078787,2745.9,2745.8,29.272]
[1749726405233,4.5078787,2745.9,2745.8,30.00025]
[1749726406331,4.5078787,2745.9,2745.8,29.272]
[1749726406531,4.5078787,2745.9,2745.8,29.268]
[1749726406832,4.5078787,2745.9,2745.8,29.99625]
[1749726408426,4.5078787,2745.9,2745.8,29.268]
[1749726409632,4.5078787,2745.9,2745.8,29.99625]
[1749726411027,0.72818,2746.1,2746.0,0.7282]
[1749726411232,4.5078287,2746.1,2746.0,23.7602]
[1749726413938,4.5078287,2746.1,2745.8,7.4491]
[1749726413939,0.72822,2745.9,2745.8,6.95923]
[1749726414132,3.7796587,2745.9,2745.8,29.98823]
[1749726414333,0.72821,2746.0,2745.9,0.72822]
[1749726414637,0.72821,2746.0,2745.9,1.98072]
[1749726416137,0.72819,2746.1,2746.0,0.72817]
[1749726416338,4.5078487,2746.1,2746.0,24.08219162]
[1749726416540,4.5078487,2746.1,2746.0,23.75617]
[1749726417336,4.5078487,2746.1,2746.0,24.08219145]
[1749726417539,4.5078487,2746.1,2746.0,23.75617]
[1749726418135,4.5078487,2746.1,2746.0,24.08219033]
[1749726418439,4.5078487,2746.1,2746.0,23.75617]
[1749726419535,4.5078487,2746.1,2746.0,23.028]
[1749726419737,4.5078487,2746.1,2746.0,23.35402404]
[1749726420041,4.5078487,2746.1,2746.0,23.028]
[1749726420240,4.5078487,2746.1,2746.0,23.35402415]
[1749726420440,4.5078487,2746.1,2746.0,24.08222415]
[1749726420633,4.5078487,2746.1,2746.0,23.35402415]
[1749726420833,4.5078487,2746.1,2746.0,24.08222415]
[1749726421236,4.5078487,2746.1,2746.0,23.35402415]
[1749726422441,4.5078487,2746.1,2746.0,0.32602415]
[1749726422746,5.7020487,2746.1,2746.0,0.32602415]
[1749726422930,5.7020487,2746.1,2746.0,23.34602415]
[1749726423437,4.5078487,2746.1,2746.0,23.34602415]
[1749726426640,0.72819,2746.1,2746.0,23.34602415]
[1749726426943,4.5078487,2746.1,2746.0,23.34602415]
[1749726427541,0.72819,2746.1,2746.0,23.34602415]
[1749726427750,4.5078487,2746.1,2746.0,23.34602415]
[1749726432142,0.72811,2746.4,2746.3,0.72809]
[1749726432346,3.7796587,2746.2,2746.1,6.94415]
[1749726432544,3.2078,2746.5,2746.4,0.72809]
[1749726432746,3.93587,2746.5,2746.4,0.72809]
[1749726433255,0.72809,2746.4,2746.3,1.9301]
[1749726433839,0.72812,2746.3,2746.2,0.6056]
[1749726434049,0.72812,2746.3,2746.2,29.8306]
[1749726434647,4.5077787,2746.3,2746.2,0.6056]
[1749726434851,0.72817,2746.1,2746.0,6.54202415]
[1749726435149,4.5078287,2746.1,2746.0,29.54702415]
[1749726435946,4.5078287,2746.1,2746.0,6.54202415]
[1749726436140,4.5078287,2746.1,2746.0,29.54602415]
[1749726436841,3.7796587,2746.1,2746.0,29.54602415]
[1749726437042,0.6066,2746.4,2746.0,29.54602415]
[1749726437249,4.5077987,2746.2,2746.1,1.8098]
[1749726437653,0.72814,2746.2,2746.1,1.8098]
[1749726438155,0.72814,2746.2,2746.1,2.53797]
[1749726438952,0.72814,2746.2,2746.1,1.8098]
[1749726439251,0.72814,2746.2,2746.1,2.53797]
[1749726439951,0.72814,2746.2,2746.1,0.6275]
[1749726440542,4.5077987,2746.2,2746.1,0.6275]
[1749726441661,4.5077987,2746.2,2746.1,1.35567]
[1749726442652,4.5077987,2746.2,2746.1,1.8527]
[1749726443858,4.5077987,2746.2,2746.1,2.58087]
[1749726444157,4.5077987,2746.2,2746.1,1.8527]
[1749726444458,4.5077987,2746.2,2746.1,2.58087]
[1749726444656,4.5077987,2746.2,2746.1,1.8527]
[1749726444860,4.5077987,2746.2,2746.1,2.58087]
[1749726445357,4.5077987,2746.2,2746.0,30.27420415]
[1749726445358,0.72817,2746.1,2746.0,30.27420415]
[1749726445954,0.72817,2746.1,2746.0,31.56080415]
[1749726446651,0.72817,2746.2,2746.1,0.72814]
[1749726446852,4.5078287,2746.2,2746.1,0.72814]
[1749726447552,0.72817,2746.1,2746.0,30.83262415]
[1749726448261,0.72817,2746.1,2746.0,31.56080415]
[1749726451361,0.6066,2746.4,2746.0,30.83262415]
[1749726451554,4.5078287,2746.2,2746.1,0.72814]
[1749726452765,3.7796587,2746.2,2746.1,0.72814]
[1749726452956,4.5077987,2746.2,2746.1,0.72814]
[1749726455664,0.72817,2746.1,2746.0,31.56080415]
[1749726457263,0.72817,2746.1,2746.0,31.53780415]
[1749726457464,0.72815,2746.3,2746.2,0.72812]
[1749726457665,0.72815,2746.3,2746.2,23.70812]
[1749726457966,4.5078087,2746.3,2746.2,23.70812]
[1749726459163,4.5078087,2746.3,2746.2,22.98]
[1749726460467,0.72814,2746.2,2746.1,1.37036]
[1749726460667,4.5077987,2746.2,2746.1,24.34936]
[1749726462968,4.5077987,2746.2,2746.1,23.6212]
[1749726463170,4.5077987,2746.2,2746.1,23.70717]
[1749726465670,4.5077987,2746.2,2746.1,22.979]
[1749726466372,4.5077987,2746.2,2746.1,23.70717]
[1749726467172,3.7796587,2746.2,2746.1,23.70717]
[1749726467374,4.5077987,2746.2,2746.1,23.70717]
[1749726468878,4.5077987,2746.2,2746.0,11.03642415]
[1749726468879,0.72817,2746.1,2746.0,8.55680415]
[1749726469074,0.72817,2746.1,2746.0,31.52280415]
[1749726473080,0.72817,2746.1,2746.0,30.23620415]
[1749726473577,0.72817,2746.1,2746.0,7.27020415]
[1749726473777,4.5078287,2746.1,2746.0,30.23120415]
[1749726477681,3.7796587,2746.1,2746.0,31.52100415]
[1749726478280,4.5078287,2746.1,2746.0,31.52100415]
[1749726479082,4.5078287,2746.1,2746.0,30.23120415]
[1749726480178,4.5078287,2746.1,2746.0,30.23122415]
[1749726480569,4.5078287,2746.1,2746.0,1.05422415]
[1749726480776,4.5078287,2746.1,2746.0,0.32602415]
[1749726480980,5.1482287,2746.1,2746.0,29.45202415]
[1749726481178,6.55219805,2746.1,2746.0,29.45202415]
[1749726481884,5.1482287,2746.1,2746.0,29.45202415]
[1749726482075,6.56126191,2746.1,2746.0,29.45202415]
[1749726483383,5.1482287,2746.1,2746.0,29.45202415]
[1749726484383,4.5078287,2746.1,2746.0,29.45202415]
[1749726484681,4.5078287,2746.1,2746.0,30.24224135]
[1749726484875,3.2078,2746.4,2746.0,29.51404135]
[1749726485074,3.2078,2746.7,2746.1,1.8418]
[1749726485273,3.7796587,2746.5,2746.4,0.72807]
[1749726485583,3.7796587,2746.5,2746.4,29.84907]
[1749726485584,4.5077387,2746.5,2746.4,29.84907]
[1749726485780,0.72808,2746.5,2746.4,29.84907]
[1749726486274,0.72812,2746.3,2746.2,1.2363]
[1749726486474,3.7796587,2746.3,2746.1,0.6308]
[1749726486680,5.1139987,2746.2,2746.1,6.175]
[1749726486876,5.1139987,2746.2,2746.1,29.12]
[1749726487081,5.1139987,2746.2,2746.1,29.84817]
[1749726487390,5.1139987,2746.2,2746.1,29.12]
[1749726488084,5.1139987,2746.2,2746.1,29.84817]
[1749726488279,5.1139987,2746.2,2746.1,29.12]
[1749726492389,5.1139987,2746.2,2746.1,22.945]
[1749726493389,0.72817,2746.1,2746.0,6.50102415]
[1749726493589,4.5078287,2746.1,2746.0,29.43702415]
[1749726494591,4.5078287,2746.1,2746.0,30.16522415]
[1749726495287,4.5078287,2746.1,2746.0,29.43702415]
[1749726496989,4.5078287,2746.1,2746.0,30.16522415]
[1749726498097,4.5078287,2746.1,2746.0,29.43702415]
[1749726499102,4.5078287,2746.1,2746.0,30.16522415]
[1749726500495,4.5078287,2746.1,2746.0,30.80212415]
[1749726504505,4.5078287,2746.1,2746.0,30.07392415]
[1749726504802,4.5078287,2746.1,2746.0,30.80212415]
[1749726505408,4.5078287,2746.1,2746.0,30.07392415]
[1749726505605,4.5078287,2746.1,2746.0,30.80212415]
[1749726506604,4.5078287,2746.1,2746.0,30.07392415]
[1749726507206,4.5078287,2746.1,2746.0,30.80212415]
[1749726507399,4.5078287,2746.1,2746.0,30.07392415]
[1749726507799,4.5078287,2746.1,2746.0,30.80212415]
[1749726508199,4.5078287,2746.1,2746.0,30.07392415]
[1749726508803,4.5078287,2746.1,2746.0,30.80212415]
[1749726509006,4.5078287,2746.1,2746.0,30.07392415]
[1749726509401,4.5078287,2746.1,2746.0,30.80212415]
[1749726509708,4.5078287,2746.1,2746.0,30.07392415]
[1749726510503,4.5078287,2746.1,2746.0,6.50102415]
[1749726510705,4.5078287,2746.1,2746.0,29.41602415]
[1749726513109,4.5078287,2746.1,2746.0,30.14422415]
[1749726513311,4.5078287,2746.1,2746.0,29.41602415]
[1749726513602,4.5078287,2746.1,2746.0,6.50102415]
[1749726513808,4.5078287,2746.1,2746.0,29.41202415]
[1749726517306,4.5078287,2746.1,2746.0,29.41202415]
[1749726519207,4.5078287,2746.1,2746.0,6.50102415]
[1749726519412,5.94545084,2746.1,2746.0,23.23002415]
[1749726519912,7.16565084,2746.1,2746.0,23.23002415]
[1749726522010,7.16565084,2746.1,2746.0,23.22802415]
[1749726522910,12.16565084,2746.1,2746.0,0.32602415]
[1749726523213,0.72833,2745.5,2745.4,0.6422]
[1749726523508,4.5079887,2745.5,2745.4,23.5432]
[1749726525415,4.5079887,2745.5,2745.4,24.27156]
[1749726525713,4.5079887,2745.5,2745.4,23.5432]
[1749726526315,4.5079887,2745.5,2745.4,0.6422]
[1749726526516,4.5079887,2745.5,2745.4,23.5422]
[1749726527316,4.5079887,2745.5,2745.4,22.9]
[1749726527817,0.72836,2745.4,2745.3,28.173]
[1749726528021,4.5080187,2745.4,2745.3,51.07]
[1749726529120,4.5080187,2745.4,2745.3,51.1320172]
[1749726530219,4.5080187,2745.4,2745.3,51.79838]
[1749726530416,3.7796587,2745.4,2745.3,52.99658]
[1749726530617,4.5080187,2745.4,2745.3,52.99658]
[1749726531422,0.72835,2745.5,2745.4,0.72833]
[1749726531721,4.5080087,2745.5,2745.4,2.00393]
[1749726532317,4.5080087,2745.5,2745.4,2.0659472]
[1749726532925,3.21325891,2745.7,2745.4,1.3376172]
[1749726533218,3.7796587,2745.6,2745.5,25.54473]
[1749726533718,0.7283,2745.6,2745.5,25.54473]
[1749726534419,0.7283,2745.6,2745.5,24.8164]
[1749726534820,0.7283,2745.6,2745.5,25.54473]
[1749726535319,0.7283,2745.6,2745.5,24.8164]
[1749726536024,3.21325891,2745.7,2745.6,0.7283]
[1749726536221,3.94153891,2745.7,2745.6,2.0281]
[1749726536427,4.23283891,2745.7,2745.6,2.6147]
[1749726536822,0.29675891,2745.7,2745.6,2.6147]
[1749726537025,1.02503891,2745.7,2745.6,2.6147]
[1749726537227,1.02503891,2745.7,2745.6,1.8864]
[1749726537525,4.80469761,2745.7,2745.6,1.8864]
[1749726538524,4.80469761,2745.7,2745.6,23.4736]
[1749726538724,8.01249761,2745.7,2745.6,23.4736]
[1749726539425,0.72836,2745.4,2745.3,28.173]
[1749726539625,0.72836,2745.4,2745.3,51.6936]
[1749726539924,0.72836,2745.4,2745.3,28.8096]
[1749726540121,4.5080187,2745.4,2745.3,6.7896]
[1749726540632,4.5080187,2745.4,2745.3,29.6716]
[1749726541230,4.5080187,2745.4,2745.3,6.7896]
[1749726541430,4.5080187,2745.4,2745.3,29.6716]
[1749726541727,4.5080187,2745.4,2745.3,6.7896]
[1749726541929,4.5080187,2745.4,2745.3,29.034]
[1749726542428,7.7158187,2745.4,2745.3,29.033]
[1749726543323,1.82097,2745.3,2744.9,0.72847]
[1749726543523,4.5081187,2745.1,2745.0,22.879]
[1749726544126,4.5081187,2745.1,2745.0,23.4656]
[1749726544326,4.5081187,2745.1,2745.0,0.5866]
[1749726544526,4.5081187,2745.1,2745.0,23.4646]